[Event "*** Titled Tuesday Blitz"]
[Site "Chess.com"]
[Date "2020.10.27"]
[Round "6"]
[White "LastHeroJr"]
[Black "KaterynaLagno"]
[Result "0-1"]
[WhiteElo "2385"]
[BlackElo "2676"]
[TimeControl "180+1"]
[EndTime "11:06:58 PDT"]
[Termination "KaterynaLagno won on time"]

1. e4 {[%clk 0:02:52.8]} 1... e5 {[%clk 0:02:59.8]} 2. Nf3 {[%clk 0:02:52.7]}
2... Nc6 {[%clk 0:03:00.4]} 3. Bc4 {[%clk 0:02:52.5]} 3... Nf6 {[%clk
0:02:59.9]} 4. d3 {[%clk 0:02:52.3]} 4... Be7 {[%clk 0:03:00]} 5. O-O {[%clk
0:02:51.9]} 5... O-O {[%clk 0:03:00.6]} 6. Re1 {[%clk 0:02:52.4]} 6... d6 {[%clk
0:03:00.5]} 7. a4 {[%clk 0:02:52.5]} 7... Kh8 {[%clk 0:02:59.7]} 8. c3 {[%clk
0:02:49.3]} 8... Ng8 {[%clk 0:02:57.7]} 9. d4 {[%clk 0:02:49.3]} 9... f5 {[%clk
0:02:57.8]} 10. dxe5 {[%clk 0:02:42.5]} 10... fxe4 {[%clk 0:02:56.8]} 11. Rxe4
{[%clk 0:02:43.4]} 11... Rxf3 {[%clk 0:02:56.1]} 12. gxf3 {[%clk 0:02:25.7]}
12... Nxe5 {[%clk 0:02:54.6]} 13. Be2 {[%clk 0:02:07.6]} 13... Bf5 {[%clk
0:02:51.6]} 14. Rb4 {[%clk 0:01:59]} 14... Qe8 {[%clk 0:02:30.7]} 15. Bf4 {[%clk
0:01:47.8]} 15... Qg6+ {[%clk 0:02:24.2]} 16. Bg3 {[%clk 0:01:46.8]} 16... h5
{[%clk 0:02:15.1]} 17. Kh1 {[%clk 0:01:40.7]} 17... b6 {[%clk 0:01:51.3]} 18. a5
{[%clk 0:00:58.5]} 18... Rf8 {[%clk 0:01:47.3]} 19. axb6 {[%clk 0:00:57.3]}
19... axb6 {[%clk 0:01:48.2]} 20. Nd2 {[%clk 0:00:55.4]} 20... Nf6 {[%clk
0:01:35.1]} 21. Qg1 {[%clk 0:00:44.4]} 21... Nd3 {[%clk 0:01:14.2]} 22. Bxd3
{[%clk 0:00:27.3]} 22... Bxd3 {[%clk 0:01:15.1]} 23. Re1 {[%clk 0:00:26.4]}
23... Qf7 {[%clk 0:01:01.8]} 24. Bh4 {[%clk 0:00:20.5]} 24... Ba6 {[%clk
0:00:48.8]} 25. Rf4 {[%clk 0:00:20]} 25... Bb7 {[%clk 0:00:46.7]} 26. Ne4 {[%clk
0:00:19.7]} 26... Qd5 {[%clk 0:00:31.7]} 27. Nxf6 {[%clk 0:00:15.5]} 27... Bxf6
{[%clk 0:00:32]} 28. Bxf6 {[%clk 0:00:15.4]} 28... Qxf3+ {[%clk 0:00:31]} 29.
Rxf3 {[%clk 0:00:13.8]} 29... Bxf3+ {[%clk 0:00:31.9]} 30. Qg2 {[%clk
0:00:13.4]} 30... Bxg2+ {[%clk 0:00:32.3]} 31. Kxg2 {[%clk 0:00:14.3]} 31...
Rxf6 {[%clk 0:00:30.8]} 32. Re7 {[%clk 0:00:13.4]} 32... c6 {[%clk 0:00:30.1]}
33. Rc7 {[%clk 0:00:07.9]} 33... d5 {[%clk 0:00:28.9]} 34. Rb7 {[%clk
0:00:04.7]} 34... b5 {[%clk 0:00:28.6]} 35. Rc7 {[%clk 0:00:04]} 35... Kh7
{[%clk 0:00:24.9]} 36. f3 {[%clk 0:00:04.2]} 36... Kh6 {[%clk 0:00:23.8]} 37.
Kg3 {[%clk 0:00:03.7]} 37... g5 {[%clk 0:00:23.8]} 0-1

[Event "*** Titled Tuesday Blitz"]
[Site "Chess.com"]
[Date "2020.10.27"]
[Round "6"]
[White "SanchezKelvin"]
[Black "midedu"]
[Result "0-1"]
[WhiteElo "2384"]
[BlackElo "2027"]
[TimeControl "180+1"]
[EndTime "11:07:03 PDT"]
[Termination "midedu won on time"]

1. e4 {[%clk 0:03:00.9]} 1... c5 {[%clk 0:02:59.5]} 2. Nf3 {[%clk 0:02:53.3]}
2... Nc6 {[%clk 0:02:58.9]} 3. d4 {[%clk 0:02:45]} 3... cxd4 {[%clk 0:02:57.3]}
4. Nxd4 {[%clk 0:02:45.9]} 4... Nf6 {[%clk 0:02:56.8]} 5. Nc3 {[%clk 0:02:45.5]}
5... Qb6 {[%clk 0:02:56]} 6. Nb3 {[%clk 0:02:45.2]} 6... e6 {[%clk 0:02:54.3]}
7. Be3 {[%clk 0:02:43]} 7... Qc7 {[%clk 0:02:52.8]} 8. a3 {[%clk 0:02:43.1]}
8... a6 {[%clk 0:02:52.7]} 9. f4 {[%clk 0:02:42.8]} 9... d6 {[%clk 0:02:52.2]}
10. g4 {[%clk 0:02:42.6]} 10... b5 {[%clk 0:02:51.6]} 11. g5 {[%clk 0:02:42.6]}
11... Nd7 {[%clk 0:02:51.4]} 12. Qd2 {[%clk 0:02:32]} 12... Rb8 {[%clk
0:02:49.7]} 13. Nd4 {[%clk 0:02:20.5]} 13... b4 {[%clk 0:02:31.6]} 14. axb4
{[%clk 0:02:06.8]} 14... Rxb4 {[%clk 0:02:21.6]} 15. Nxc6 {[%clk 0:01:30.4]}
15... Qxc6 {[%clk 0:02:20.7]} 16. b3 {[%clk 0:01:25.3]} 16... Rxe4 {[%clk
0:02:19]} 17. Nxe4 {[%clk 0:01:21.2]} 17... Qxe4 {[%clk 0:02:18.2]} 18. Bg2
{[%clk 0:01:20.4]} 18... Qf5 {[%clk 0:02:12.4]} 19. Qc3 {[%clk 0:01:13.4]} 19...
Nc5 {[%clk 0:01:59.8]} 20. b4 {[%clk 0:01:10.2]} 20... Qg4 {[%clk 0:01:39.9]}
21. O-O {[%clk 0:01:02.4]} 21... Bb7 {[%clk 0:01:36.5]} 22. Qd2 {[%clk
0:00:48.2]} 22... Ne4 {[%clk 0:01:21]} 23. Qd1 {[%clk 0:00:43.1]} 23... Qf5
{[%clk 0:01:19.6]} 24. Qf3 {[%clk 0:00:17.7]} 24... Qb5 {[%clk 0:01:08.5]} 25.
c4 {[%clk 0:00:16.5]} 25... Qxc4 {[%clk 0:00:46.3]} 26. Rfc1 {[%clk 0:00:15.7]}
26... Qb5 {[%clk 0:00:44.7]} 27. Bf1 {[%clk 0:00:12.8]} 27... Qd7 {[%clk
0:00:26.3]} 28. b5 {[%clk 0:00:08.3]} 28... Be7 {[%clk 0:00:19.3]} 29. bxa6
{[%clk 0:00:08.1]} 29... Ba8 {[%clk 0:00:18.6]} 30. Bb5 {[%clk 0:00:07.1]} 30...
Qxb5 {[%clk 0:00:16.1]} 31. Rc8+ {[%clk 0:00:06.8]} 31... Kd7 {[%clk 0:00:16.5]}
32. Rxh8 {[%clk 0:00:06.1]} 32... Bd5 {[%clk 0:00:16.6]} 33. a7 {[%clk
0:00:03.6]} 33... Nxg5 {[%clk 0:00:15.2]} 34. Qf1 {[%clk 0:00:01.9]} 34... Nf3+
{[%clk 0:00:13.9]} 35. Kf2 {[%clk 0:00:01.9]} 35... Qb2+ {[%clk 0:00:13.7]} 0-1

[Event "*** Titled Tuesday Blitz"]
[Site "Chess.com"]
[Date "2020.10.27"]
[Round "6"]
[White "Azerichess"]
[Black "Fighter008"]
[Result "1-0"]
[WhiteElo "2983"]
[BlackElo "2685"]
[TimeControl "180+1"]
[EndTime "11:07:04 PDT"]
[Termination "Azerichess won by resignation"]

1. e4 {[%clk 0:03:00.9]} 1... c5 {[%clk 0:02:57.4]} 2. Nc3 {[%clk 0:03:01.1]}
2... a6 {[%clk 0:02:56.5]} 3. Nf3 {[%clk 0:03:00.5]} 3... d6 {[%clk 0:02:55.6]}
4. g3 {[%clk 0:03:00.9]} 4... Nf6 {[%clk 0:02:47.8]} 5. Bg2 {[%clk 0:03:00.9]}
5... g6 {[%clk 0:02:44.3]} 6. O-O {[%clk 0:02:59.9]} 6... Bg7 {[%clk 0:02:44.9]}
7. e5 {[%clk 0:03:00.1]} 7... dxe5 {[%clk 0:02:42.9]} 8. Nxe5 {[%clk 0:03:01]}
8... O-O {[%clk 0:02:43.4]} 9. d3 {[%clk 0:02:58.7]} 9... Nbd7 {[%clk 0:02:39]}
10. Nc4 {[%clk 0:02:54.6]} 10... Nb6 {[%clk 0:02:21.8]} 11. Qe2 {[%clk 0:02:40]}
11... Bg4 {[%clk 0:02:16.4]} 12. Qe3 {[%clk 0:02:32]} 12... Nxc4 {[%clk
0:02:00.9]} 13. dxc4 {[%clk 0:02:32.9]} 13... Qc7 {[%clk 0:02:01.2]} 14. h3
{[%clk 0:02:29.6]} 14... Be6 {[%clk 0:01:59.8]} 15. Nd5 {[%clk 0:02:22.4]} 15...
Nxd5 {[%clk 0:01:50.7]} 16. cxd5 {[%clk 0:02:23.3]} 16... Bf5 {[%clk 0:01:51]}
17. c3 {[%clk 0:02:22.4]} 17... h5 {[%clk 0:01:44.8]} 18. Qe2 {[%clk 0:02:22.3]}
18... Rfe8 {[%clk 0:01:39]} 19. Rd1 {[%clk 0:02:04.5]} 19... Qd7 {[%clk
0:01:37.8]} 20. Kh2 {[%clk 0:02:04.3]} 20... e5 {[%clk 0:01:22.7]} 21. dxe6
{[%clk 0:02:00.6]} 21... Qxe6 {[%clk 0:01:21.6]} 22. Qxe6 {[%clk 0:01:55.7]}
22... Rxe6 {[%clk 0:01:21]} 23. Be3 {[%clk 0:01:56.6]} 23... Rb6 {[%clk
0:01:02.8]} 24. Rd2 {[%clk 0:01:55.1]} 24... Rc8 {[%clk 0:01:00.4]} 25. Rad1
{[%clk 0:01:54]} 25... Bf6 {[%clk 0:00:46.2]} 26. Rd6 {[%clk 0:01:53.5]} 26...
Rxd6 {[%clk 0:00:43.1]} 27. Rxd6 {[%clk 0:01:54.4]} 27... Be7 {[%clk 0:00:41.5]}
28. Rb6 {[%clk 0:01:54.1]} 28... Be6 {[%clk 0:00:39.1]} 29. Rxb7 {[%clk
0:01:49.9]} 29... Bf8 {[%clk 0:00:36.2]} 30. a4 {[%clk 0:01:39.4]} 30... h4
{[%clk 0:00:34.3]} 31. gxh4 {[%clk 0:01:35.4]} 31... Rd8 {[%clk 0:00:31]} 32.
Bf4 {[%clk 0:01:29.3]} 32... Kh7 {[%clk 0:00:16.9]} 33. Rb8 {[%clk 0:01:27.8]}
33... Rxb8 {[%clk 0:00:16.1]} 34. Bxb8 {[%clk 0:01:28.7]} 34... Be7 {[%clk
0:00:16.2]} 35. Kg3 {[%clk 0:01:15.1]} 35... Bb3 {[%clk 0:00:13.8]} 36. Bc6
{[%clk 0:01:14.7]} 36... f5 {[%clk 0:00:11.8]} 37. Bf4 {[%clk 0:01:08.5]} 37...
Kg7 {[%clk 0:00:11.2]} 38. Bg5 {[%clk 0:01:03]} 38... Bd6+ {[%clk 0:00:10.8]}
39. Kf3 {[%clk 0:01:03.3]} 39... Kf7 {[%clk 0:00:10.4]} 40. Ke3 {[%clk 0:01:00]}
40... Ke6 {[%clk 0:00:10.6]} 41. Be8 {[%clk 0:00:59.4]} 41... c4 {[%clk
0:00:09.5]} 42. Bxg6 {[%clk 0:00:56.7]} 42... Bc5+ {[%clk 0:00:09.5]} 43. Ke2
{[%clk 0:00:56.6]} 43... Bxa4 {[%clk 0:00:09.8]} 44. h5 {[%clk 0:00:57.1]} 44...
Bc2 {[%clk 0:00:08.4]} 45. h6 {[%clk 0:00:56.3]} 45... Bf8 {[%clk 0:00:08.2]}
46. h7 {[%clk 0:00:55.8]} 46... Bg7 {[%clk 0:00:08.3]} 47. Be3 {[%clk
0:00:56.3]} 47... Bd3+ {[%clk 0:00:07.9]} 48. Ke1 {[%clk 0:00:55.1]} 48... Kf6
{[%clk 0:00:07.6]} 49. Bh5 {[%clk 0:00:53.2]} 49... Ke7 {[%clk 0:00:05.3]} 50.
Bd4 {[%clk 0:00:52.7]} 1-0

[Event "*** Titled Tuesday Blitz"]
[Site "Chess.com"]
[Date "2020.10.27"]
[Round "6"]
[White "Sergey85Rodchenkov"]
[Black "PotapovaM"]
[Result "0-1"]
[WhiteElo "2445"]
[BlackElo "2582"]
[TimeControl "180+1"]
[EndTime "11:07:05 PDT"]
[Termination "PotapovaM won by resignation"]

1. e4 {[%clk 0:03:00.9]} 1... c5 {[%clk 0:02:59.9]} 2. Nf3 {[%clk 0:03:01]} 2...
d6 {[%clk 0:03:00.2]} 3. d4 {[%clk 0:03:01.4]} 3... cxd4 {[%clk 0:03:01.1]} 4.
Nxd4 {[%clk 0:03:01.9]} 4... Nf6 {[%clk 0:03:01.7]} 5. Nc3 {[%clk 0:03:02.4]}
5... a6 {[%clk 0:03:02.4]} 6. Bc4 {[%clk 0:03:02.7]} 6... e6 {[%clk 0:03:02.6]}
7. Bb3 {[%clk 0:03:02.3]} 7... b5 {[%clk 0:03:02.4]} 8. O-O {[%clk 0:03:01.9]}
8... Be7 {[%clk 0:03:02.6]} 9. f4 {[%clk 0:03:01.9]} 9... Bb7 {[%clk 0:02:57.2]}
10. Be3 {[%clk 0:03:00.8]} 10... O-O {[%clk 0:02:51.7]} 11. e5 {[%clk
0:02:57.8]} 11... dxe5 {[%clk 0:02:47.3]} 12. fxe5 {[%clk 0:02:57.9]} 12... Nd5
{[%clk 0:02:47.9]} 13. Nxd5 {[%clk 0:02:58]} 13... Bxd5 {[%clk 0:02:48.8]} 14.
Bxd5 {[%clk 0:02:58.2]} 14... Qxd5 {[%clk 0:02:02.4]} 15. Nf5 {[%clk 0:02:57.1]}
15... Qb7 {[%clk 0:02:02.9]} 16. Nxg7 {[%clk 0:02:13.6]} 16... Kxg7 {[%clk
0:01:38.7]} 17. Qh5 {[%clk 0:02:12.8]} 17... Nd7 {[%clk 0:01:10.1]} 18. Rf3
{[%clk 0:01:26.6]} 18... Qe4 {[%clk 0:01:08.2]} 19. Raf1 {[%clk 0:01:21.7]}
19... Nxe5 {[%clk 0:01:03]} 20. Rg3+ {[%clk 0:01:00.2]} 20... Ng6 {[%clk
0:00:49.9]} 21. Qh6+ {[%clk 0:00:50.4]} 21... Kh8 {[%clk 0:00:41]} 22. Rh3
{[%clk 0:00:50.3]} 22... Ne5 {[%clk 0:00:41.2]} 23. Bf4 {[%clk 0:00:20.4]} 23...
Nc4 {[%clk 0:00:30.8]} 24. Bg5 {[%clk 0:00:16.5]} 24... Bxg5 {[%clk 0:00:22.3]}
25. Qxg5 {[%clk 0:00:16.7]} 25... Rg8 {[%clk 0:00:22]} 26. Qf6+ {[%clk
0:00:16.8]} 26... Rg7 {[%clk 0:00:22.3]} 27. g3 {[%clk 0:00:16.1]} 27... Qe3+
{[%clk 0:00:16.1]} 28. Rf2 {[%clk 0:00:15.4]} 28... Qe1+ {[%clk 0:00:13]} 29.
Rf1 {[%clk 0:00:15.6]} 29... Qe3+ {[%clk 0:00:13.1]} 30. Rf2 {[%clk 0:00:16.1]}
30... Nd2 {[%clk 0:00:07.1]} 31. Rh4 {[%clk 0:00:11.7]} 31... Ne4 {[%clk
0:00:05.8]} 32. Rg4 {[%clk 0:00:06.8]} 32... Qxf2+ {[%clk 0:00:05]} 33. Qxf2
{[%clk 0:00:06.7]} 33... Nxf2 {[%clk 0:00:05.9]} 0-1

[Event "*** Titled Tuesday Blitz"]
[Site "Chess.com"]
[Date "2020.10.27"]
[Round "6"]
[White "PavelShkapenko"]
[Black "eljanov"]
[Result "1/2-1/2"]
[WhiteElo "2643"]
[BlackElo "2862"]
[TimeControl "180+1"]
[EndTime "11:07:06 PDT"]
[Termination "Game drawn by agreement"]

1. e4 {[%clk 0:03:00.9]} 1... e5 {[%clk 0:02:58.5]} 2. Nf3 {[%clk 0:03:00.5]}
2... Nc6 {[%clk 0:02:58.9]} 3. Bc4 {[%clk 0:02:59.9]} 3... Bc5 {[%clk
0:02:58.6]} 4. c3 {[%clk 0:02:59.9]} 4... Nf6 {[%clk 0:02:58.8]} 5. d4 {[%clk
0:03:00.5]} 5... exd4 {[%clk 0:02:58.6]} 6. cxd4 {[%clk 0:03:01.4]} 6... Bb4+
{[%clk 0:02:57.4]} 7. Bd2 {[%clk 0:03:01.7]} 7... Nxe4 {[%clk 0:02:54]} 8. Bxb4
{[%clk 0:03:01.1]} 8... Nxb4 {[%clk 0:02:54.2]} 9. Bxf7+ {[%clk 0:03:01.6]} 9...
Kxf7 {[%clk 0:02:54]} 10. Qb3+ {[%clk 0:03:01.6]} 10... Kf8 {[%clk 0:02:38.8]}
11. Qxb4+ {[%clk 0:03:00.9]} 11... Qe7 {[%clk 0:02:39.1]} 12. Qxe7+ {[%clk
0:03:00.8]} 12... Kxe7 {[%clk 0:02:39.5]} 13. O-O {[%clk 0:03:01.3]} 13... Kf6
{[%clk 0:02:25.8]} 14. Re1 {[%clk 0:02:57.5]} 14... d5 {[%clk 0:02:25.7]} 15.
Nbd2 {[%clk 0:02:54.7]} 15... Nxd2 {[%clk 0:02:22.4]} 16. Nxd2 {[%clk
0:02:54.5]} 16... Bg4 {[%clk 0:01:45.4]} 17. f3 {[%clk 0:02:51.6]} 17... Bf5
{[%clk 0:01:39.9]} 18. Kf2 {[%clk 0:02:51.9]} 18... Rhe8 {[%clk 0:01:38.8]} 19.
Rxe8 {[%clk 0:02:47.1]} 19... Rxe8 {[%clk 0:01:38.4]} 20. Re1 {[%clk 0:02:47.7]}
20... Rxe1 {[%clk 0:01:38.2]} 21. Kxe1 {[%clk 0:02:47.9]} 21... a5 {[%clk
0:01:38.8]} 22. Kf2 {[%clk 0:02:46]} 22... b6 {[%clk 0:01:37.8]} 23. Ke3 {[%clk
0:02:42.4]} 23... Bc2 {[%clk 0:01:30.3]} 24. g3 {[%clk 0:02:33]} 24... c5 {[%clk
0:01:29.5]} 25. f4 {[%clk 0:02:29.8]} 25... c4 {[%clk 0:01:21.7]} 26. Nf3 {[%clk
0:02:22.7]} 26... Ke6 {[%clk 0:01:14]} 27. Ne5 {[%clk 0:02:19.3]} 27... Kd6
{[%clk 0:01:07.2]} 28. Kd2 {[%clk 0:02:10.8]} 28... Be4 {[%clk 0:01:05.5]} 29.
a3 {[%clk 0:02:07.7]} 29... b5 {[%clk 0:01:04.5]} 30. Kc3 {[%clk 0:02:07.8]}
30... h6 {[%clk 0:01:03.5]} 31. g4 {[%clk 0:01:26.1]} 31... Bg2 {[%clk
0:00:40.6]} 32. Nf7+ {[%clk 0:01:22.3]} 32... Ke6 {[%clk 0:00:37.9]} 33. Ne5
{[%clk 0:01:22.8]} 33... Bh3 {[%clk 0:00:35.4]} 34. b4 {[%clk 0:00:48.7]} 34...
a4 {[%clk 0:00:31.5]} 35. Kd2 {[%clk 0:00:48.2]} 35... Kf6 {[%clk 0:00:24.3]}
36. Ke3 {[%clk 0:00:47.5]} 36... h5 {[%clk 0:00:20.5]} 37. gxh5 {[%clk
0:00:40.8]} 37... Bf5 {[%clk 0:00:20.2]} 38. Nf3 {[%clk 0:00:33.2]} 38... Bd7
{[%clk 0:00:18.5]} 39. Nh4 {[%clk 0:00:31.2]} 39... Be8 {[%clk 0:00:18.1]} 40.
h6 {[%clk 0:00:28.7]} 40... gxh6 {[%clk 0:00:17.4]} 41. Kd2 {[%clk 0:00:28.1]}
41... Bd7 {[%clk 0:00:17.6]} 42. Ke3 {[%clk 0:00:27.9]} 42... Bf5 {[%clk
0:00:17.3]} 43. Kd2 {[%clk 0:00:28.1]} 43... Be4 {[%clk 0:00:17.6]} 44. Kc3
{[%clk 0:00:28.2]} 44... Kg7 {[%clk 0:00:16.2]} 45. Kd2 {[%clk 0:00:28.4]} 45...
Kf7 {[%clk 0:00:15.8]} 46. Kc3 {[%clk 0:00:28.7]} 46... Kf6 {[%clk 0:00:14.6]}
47. Kd2 {[%clk 0:00:28.9]} 47... Kf7 {[%clk 0:00:13.2]} 1/2-1/2

[Event "*** Titled Tuesday Blitz"]
[Site "Chess.com"]
[Date "2020.10.27"]
[Round "6"]
[White "Mimsychess"]
[Black "elohunter1999"]
[Result "1-0"]
[WhiteElo "2339"]
[BlackElo "2496"]
[TimeControl "180+1"]
[EndTime "11:07:06 PDT"]
[Termination "Mimsychess won by checkmate"]

1. Nf3 {[%clk 0:02:59.2]} 1... d5 {[%clk 0:02:57.9]} 2. d4 {[%clk 0:02:58.5]}
2... Nf6 {[%clk 0:02:57.9]} 3. c4 {[%clk 0:02:59]} 3... c6 {[%clk 0:02:58.3]} 4.
g3 {[%clk 0:02:55.5]} 4... Bg4 {[%clk 0:02:53.7]} 5. Ne5 {[%clk 0:02:51.1]} 5...
Bf5 {[%clk 0:02:50.7]} 6. Bg2 {[%clk 0:02:49.3]} 6... Nbd7 {[%clk 0:02:48.5]} 7.
Nc3 {[%clk 0:02:44]} 7... e6 {[%clk 0:02:48.3]} 8. Nxd7 {[%clk 0:02:41.4]} 8...
Nxd7 {[%clk 0:02:45.7]} 9. O-O {[%clk 0:02:35.7]} 9... Be7 {[%clk 0:02:45.4]}
10. e4 {[%clk 0:02:35.9]} 10... dxe4 {[%clk 0:02:45.3]} 11. Nxe4 {[%clk
0:02:36.1]} 11... O-O {[%clk 0:02:45.4]} 12. Bf4 {[%clk 0:02:31.2]} 12... Nf6
{[%clk 0:02:42.2]} 13. Nc3 {[%clk 0:02:30.7]} 13... Qb6 {[%clk 0:02:37.4]} 14.
Qb3 {[%clk 0:01:49.4]} 14... Qa6 {[%clk 0:02:24]} 15. d5 {[%clk 0:01:45.2]}
15... Bd3 {[%clk 0:02:15.8]} 16. dxe6 {[%clk 0:01:34.2]} 16... Bxc4 {[%clk
0:02:10.9]} 17. exf7+ {[%clk 0:01:31.6]} 17... Rxf7 {[%clk 0:02:06.2]} 18. Qc2
{[%clk 0:01:26.8]} 18... Bxf1 {[%clk 0:02:05.4]} 19. Bxf1 {[%clk 0:01:27.7]}
19... b5 {[%clk 0:02:03.1]} 20. a4 {[%clk 0:01:25.3]} 20... Rd8 {[%clk
0:01:55.7]} 21. Re1 {[%clk 0:01:24.7]} 21... Bd6 {[%clk 0:01:40.1]} 22. axb5
{[%clk 0:01:23.6]} 22... cxb5 {[%clk 0:01:40.3]} 23. Bxd6 {[%clk 0:01:12.3]}
23... Qxd6 {[%clk 0:01:37.6]} 24. Nxb5 {[%clk 0:01:10.8]} 24... Qb6 {[%clk
0:01:23.7]} 25. Bc4 {[%clk 0:01:10]} 25... Nd5 {[%clk 0:01:14.5]} 26. Nc3 {[%clk
0:00:52.6]} 26... Nxc3 {[%clk 0:00:57.1]} 27. Bxf7+ {[%clk 0:00:49.5]} 27...
Kxf7 {[%clk 0:00:57]} 28. Qxc3 {[%clk 0:00:49.6]} 28... Kg8 {[%clk 0:00:44.8]}
29. Re7 {[%clk 0:00:47.2]} 29... Qg6 {[%clk 0:00:44.8]} 30. Qc4+ {[%clk
0:00:39.7]} 30... Kh8 {[%clk 0:00:44.1]} 31. Qc7 {[%clk 0:00:37.1]} 31... Rd1+
{[%clk 0:00:40.9]} 32. Kg2 {[%clk 0:00:36.7]} 32... h6 {[%clk 0:00:37.2]} 33.
Qxa7 {[%clk 0:00:35.3]} 33... Qc6+ {[%clk 0:00:36.3]} 34. Kh3 {[%clk 0:00:30.8]}
34... Qc8+ {[%clk 0:00:20.4]} 35. Kg2 {[%clk 0:00:26.1]} 35... Qc6+ {[%clk
0:00:20.4]} 36. Kh3 {[%clk 0:00:22.6]} 36... Qf6 {[%clk 0:00:16.5]} 37. Qa8+
{[%clk 0:00:21.8]} 37... Kh7 {[%clk 0:00:13.3]} 38. Qe4+ {[%clk 0:00:22.5]}
38... Kg8 {[%clk 0:00:12.2]} 39. Re8+ {[%clk 0:00:20.7]} 39... Kf7 {[%clk
0:00:11.8]} 40. Rc8 {[%clk 0:00:20.8]} 40... Rd7 {[%clk 0:00:08]} 41. Qe8#
{[%clk 0:00:20.7]} 1-0

[Event "*** Titled Tuesday Blitz"]
[Site "Chess.com"]
[Date "2020.10.27"]
[Round "6"]
[White "GrafLermontov"]
[Black "mbojan"]
[Result "0-1"]
[WhiteElo "2474"]
[BlackElo "2703"]
[TimeControl "180+1"]
[EndTime "11:07:08 PDT"]
[Termination "mbojan won by resignation"]

1. d4 {[%clk 0:03:00.9]} 1... Nf6 {[%clk 0:03:00.1]} 2. c4 {[%clk 0:03:00.8]}
2... c5 {[%clk 0:03:00.4]} 3. Nf3 {[%clk 0:02:59.9]} 3... cxd4 {[%clk
0:03:01.3]} 4. Nxd4 {[%clk 0:03:00.8]} 4... e5 {[%clk 0:03:01.8]} 5. Nb5 {[%clk
0:02:57.5]} 5... d5 {[%clk 0:03:01.8]} 6. cxd5 {[%clk 0:02:56]} 6... Bc5 {[%clk
0:03:02.4]} 7. N1c3 {[%clk 0:02:53.1]} 7... O-O {[%clk 0:03:01.8]} 8. e3 {[%clk
0:02:44.1]} 8... a6 {[%clk 0:02:55.1]} 9. Na3 {[%clk 0:02:41.6]} 9... b5 {[%clk
0:02:55.3]} 10. Nc2 {[%clk 0:02:38.4]} 10... Bf5 {[%clk 0:02:54.7]} 11. Bd3
{[%clk 0:02:35.9]} 11... e4 {[%clk 0:02:54.7]} 12. Be2 {[%clk 0:02:33.5]} 12...
Nbd7 {[%clk 0:02:50.5]} 13. g4 {[%clk 0:02:27.9]} 13... Bg6 {[%clk 0:02:43.1]}
14. h4 {[%clk 0:02:28.2]} 14... h6 {[%clk 0:02:28]} 15. g5 {[%clk 0:02:25]}
15... hxg5 {[%clk 0:02:27]} 16. hxg5 {[%clk 0:02:25.9]} 16... Nh7 {[%clk
0:02:26.8]} 17. Bh5 {[%clk 0:02:20.6]} 17... Qxg5 {[%clk 0:02:19.2]} 18. Bxg6
{[%clk 0:02:16.9]} 18... Qxg6 {[%clk 0:02:20.1]} 19. Qh5 {[%clk 0:01:53.8]}
19... Qxh5 {[%clk 0:02:19.9]} 20. Rxh5 {[%clk 0:01:54.7]} 20... Nhf6 {[%clk
0:02:20.3]} 21. Rh4 {[%clk 0:01:53.8]} 21... Rfe8 {[%clk 0:02:16.3]} 22. Nd4
{[%clk 0:01:52.8]} 22... Bxd4 {[%clk 0:02:14.4]} 23. exd4 {[%clk 0:01:53.7]}
23... Nb6 {[%clk 0:02:12.4]} 24. Be3 {[%clk 0:01:50.3]} 24... Nbxd5 {[%clk
0:02:10.4]} 25. Nxd5 {[%clk 0:01:49.9]} 25... Nxd5 {[%clk 0:02:11.3]} 26. Kd2
{[%clk 0:01:49.7]} 26... f6 {[%clk 0:02:04.2]} 27. Rg1 {[%clk 0:01:47.6]} 27...
Kf7 {[%clk 0:02:04.1]} 28. Rh7 {[%clk 0:01:43.3]} 28... Rg8 {[%clk 0:02:03.4]}
29. Bh6 {[%clk 0:01:40.9]} 29... Ke6 {[%clk 0:01:53.7]} 30. Rgxg7 {[%clk
0:01:38.9]} 30... Rxg7 {[%clk 0:01:53.1]} 31. Rxg7 {[%clk 0:01:39.6]} 31... Rh8
{[%clk 0:01:51.3]} 32. Be3 {[%clk 0:01:39.7]} 32... Rc8 {[%clk 0:01:44.4]} 33.
a3 {[%clk 0:01:32.3]} 33... b4 {[%clk 0:01:30.7]} 34. Ra7 {[%clk 0:01:28.6]}
34... Rc6 {[%clk 0:01:29.2]} 35. a4 {[%clk 0:01:19.9]} 35... b3 {[%clk
0:01:28.3]} 36. Rb7 {[%clk 0:01:19.6]} 36... Rc2+ {[%clk 0:01:27.4]} 37. Kd1
{[%clk 0:01:19.2]} 37... Rxb2 {[%clk 0:01:26.7]} 38. Ra7 {[%clk 0:01:18.4]}
38... Nc3+ {[%clk 0:01:20.6]} 39. Ke1 {[%clk 0:01:16.2]} 39... Re2+ {[%clk
0:01:18]} 40. Kf1 {[%clk 0:01:16.5]} 40... b2 {[%clk 0:01:16.1]} 41. Rxa6+
{[%clk 0:01:17.4]} 41... Kd5 {[%clk 0:01:16.2]} 42. Rb6 {[%clk 0:01:14.4]} 42...
Rxe3 {[%clk 0:01:01.7]} 43. Rxb2 {[%clk 0:01:10.9]} 43... Rd3 {[%clk 0:00:59.9]}
44. a5 {[%clk 0:01:04]} 44... Rxd4 {[%clk 0:00:55.1]} 45. Rb6 {[%clk 0:01:04.2]}
45... Ke5 {[%clk 0:00:52.8]} 46. a6 {[%clk 0:01:03.7]} 46... Ra4 {[%clk
0:00:52.5]} 47. Kg2 {[%clk 0:01:02.1]} 47... Nd5 {[%clk 0:00:52.5]} 48. Rc6
{[%clk 0:00:59.7]} 48... Ra3 {[%clk 0:00:53]} 49. Kh2 {[%clk 0:00:54.5]} 49...
Nf4 {[%clk 0:00:51.1]} 50. Rc5+ {[%clk 0:00:49.6]} 50... Ke6 {[%clk 0:00:51.2]}
51. Rc6+ {[%clk 0:00:49.7]} 51... Kf5 {[%clk 0:00:51.6]} 52. Rb6 {[%clk
0:00:44.4]} 52... Kg5 {[%clk 0:00:49.4]} 53. Rb5+ {[%clk 0:00:41.2]} 53... Kg4
{[%clk 0:00:48.8]} 54. Rb4 {[%clk 0:00:38.7]} 54... f5 {[%clk 0:00:48.4]} 55.
Rb6 {[%clk 0:00:38.6]} 55... Ra2 {[%clk 0:00:47.4]} 56. Kg1 {[%clk 0:00:32.4]}
56... Nh3+ {[%clk 0:00:47.1]} 57. Kf1 {[%clk 0:00:28.3]} 57... Rxf2+ {[%clk
0:00:44.4]} 58. Ke1 {[%clk 0:00:28.5]} 58... Ra2 {[%clk 0:00:45.3]} 59. Rg6+
{[%clk 0:00:27.2]} 59... Kf3 {[%clk 0:00:45.3]} 0-1